fUSD/lending_fUSD_20250820
["ID","MTS","AMOUNT","RATE_DAILY","PERIOD"]
[380358400,1755703846626,-900.0,0.0002,2]
[380358401,1755703846636,-900.0,0.0002,2]
[380358402,1755703846646,-900.0,0.0002,2]
[380358403,1755703846655,-900.0,0.0002,2]
[380358404,1755703846664,-900.0,0.0002,2]
[380358405,1755703846674,-900.0,0.0002,2]
[380358406,1755703846683,-93249.8564611,0.0002,2]
[380358407,1755703846693,-1503.15759871,0.0002,2]
[380358408,1755703846702,-6004.89741741,0.0002,2]
[380358409,1755703846712,-1433.46711556,0.0002,5]
[380358410,1755703846722,-25092.10254918,0.0002,2]
[380358411,1755703846731,-408225.56827928,0.0002,5]
[380358412,1755703846741,-200.0,0.0002,2]
[380358413,1755703846751,-8300.0,0.0002,4]
[380358414,1755703846761,-5734.95012876,0.0002,2]
[380358415,1755703846771,-1269.37703327,0.0002,2]
[380358416,1755703846781,-233.277584,0.0002,2]
[380358417,1755703846790,-297.817257,0.0002,2]
[380358418,1755703846800,-381.277014,0.0002,2]
[380358419,1755703846810,-151.0,0.0002,2]
[380358420,1755703846819,-233.277584,0.0002,2]
[380358421,1755703846829,-297.817257,0.0002,2]
[380358422,1755703846839,-381.277014,0.0002,2]
[380358423,1755703846849,-151.0,0.0002,2]
[380358424,1755703846860,-233.277584,0.0002,2]
[380358425,1755703846870,-7231.13439201,0.0002,2]
[380358426,1755703846879,-297.817257,0.0002,2]
[380358427,1755703846888,-2024.83254549,0.0002,3]
[380358428,1755703846899,-381.277014,0.0002,2]
[380358429,1755703846910,-233.277584,0.0002,2]
[380358430,1755703846920,-297.817257,0.0002,2]
[380358431,1755703846930,-381.277014,0.0002,2]
[380358432,1755703846941,-151.0,0.0002,2]
[380358433,1755703846950,-151.0,0.0002,2]
[380358434,1755703846960,-151.0,0.0002,2]
[380358435,1755703846973,-2866.55827322,0.0002,7]
[380358436,1755703846983,-403.32229,0.0002,2]
[380358437,1755703846993,-516.82664838,0.0002,7]
[380358438,1755703847002,-403.32229,0.0002,2]
[380358439,1755703847012,-403.32229,0.0002,2]
[380358440,1755703847021,-198.685108,0.0002,2]
[380358441,1755703847031,-150.0,0.0002,2]
[380358442,1755703847040,-403.32229,0.0002,2]
[380358443,1755703847051,-508.046368,0.0002,2]
[380358444,1755703847061,-151.0,0.0002,2]
[380358445,1755703847070,-1024.43858187,0.0002,2]
[380358446,1755703847080,-198.685108,0.0002,2]
[380358447,1755703847090,-508.046368,0.0002,2]
[380358448,1755703847101,-151.0,0.0002,2]
[380358449,1755703847113,-198.685108,0.0002,2]
[380358450,1755703847122,-508.046368,0.0002,2]
[380358451,1755703847132,-58969.09996149,0.0002,2]
[380358452,1755703847141,-198.685108,0.0002,2]
[380358453,1755703847151,-508.046368,0.0002,2]
[380358454,1755703847160,-635.12063267,0.0002,2]
[380358455,1755703847169,-900.0,0.0002,2]
[380358456,1755703847179,-900.0,0.0002,2]
[380358457,1755703847189,-900.0,0.0002,2]
[380358458,1755703847199,-900.0,0.0002,2]
[380358459,1755703847208,-900.0,0.0002,2]
[380358460,1755703847217,-151.0,0.0002,2]
[380358461,1755703847227,-900.0,0.0002,2]
[380358462,1755703847236,-900.0,0.0002,2]
[380358463,1755703847246,-900.0,0.0002,2]
[380358464,1755703847255,-151.0,0.0002,2]
[380358465,1755703847264,-900.0,0.0002,2]
[380358466,1755703847274,-900.0,0.0002,2]
[380358467,1755703847283,-900.0,0.0002,2]
[380358468,1755703847293,-151.0,0.0002,2]
[380358469,1755703847302,-900.0,0.0002,2]
[380358470,1755703847312,-900.0,0.0002,2]
[380358471,1755703847322,-900.0,0.0002,2]
[380358472,1755703847332,-151.0,0.0002,2]
[380358473,1755703847341,-900.0,0.0002,2]
[380358474,1755703847351,-900.0,0.0002,2]
[380358475,1755703847362,-151.0,0.0002,2]
[380358476,1755703847372,-2172.107414,0.0002,2]
[380358477,1755703847382,-2172.107414,0.0002,2]
[380358478,1755703847391,-302.034163,0.0002,2]
[380358479,1755703847401,-2172.107414,0.0002,2]
[380358480,1755703847411,-302.034163,0.0002,2]
[380358481,1755703847420,-2172.107414,0.0002,2]
[380358482,1755703847430,-302.034163,0.0002,2]
[380358483,1755703847440,-302.034163,0.0002,2]
[380358484,1755703847449,-443.804494,0.0002,2]
[380358485,1755703847459,-151.0,0.0002,2]
[380358486,1755703847468,-443.804494,0.0002,2]
[380358487,1755703847478,-151.0,0.0002,2]
[380358488,1755703847488,-235.821144,0.0002,2]
[380358489,1755703847498,-443.804494,0.0002,2]
[380358490,1755703847507,-151.0,0.0002,2]
[380358491,1755703847515,-443.804494,0.0002,2]
[380358492,1755703847523,-151.0,0.0002,2]
[380358493,1755703847532,-151.0,0.0002,2]
[380358494,1755703847541,-151.0,0.0002,2]
[380358495,1755703847550,-225.254889,0.0002,2]
[380358496,1755703847560,-151.0,0.0002,2]
[380358497,1755703847569,-151.0,0.0002,2]
[380358498,1755703847579,-151.0,0.0002,2]
[380358499,1755703847589,-299.778001,0.0002,2]
[380358500,1755703847598,-151.0,0.0002,2]
[380358501,1755703847611,-151.0,0.0002,2]
[380358502,1755703847620,-151.0,0.0002,2]
[380358503,1755703847629,-299.778001,0.0002,2]
[380358504,1755703847783,-299.778001,0.0002,2]
[380358505,1755703847793,-151.0,0.0002,2]
[380358506,1755703847803,-299.778001,0.0002,2]
[380358507,1755703847812,-151.0,0.0002,2]
[380358508,1755703847821,-151.0,0.0002,2]
[380358509,1755703847830,-151.0,0.0002,2]
[380358510,1755703847839,-151.0,0.0002,2]
[380358511,1755703847849,-151.0,0.0002,2]
[380358512,1755703847858,-151.0,0.0002,2]
[380358513,1755703847869,-462.198119,0.0002,2]
[380358514,1755703847878,-462.198119,0.0002,2]
[380358515,1755703847887,-151.0,0.0002,2]
[380358516,1755703847896,-151.0,0.0002,2]
[380358517,1755703847908,-462.198119,0.0002,2]
[380358518,1755703847918,-462.198119,0.0002,2]
[380358519,1755703847927,-151.0,0.0002,2]
[380358520,1755703847936,-151.0,0.0002,2]
[380358521,1755703847945,-151.0,0.0002,2]
[380358522,1755703847954,-364.588034,0.0002,2]
[380358523,1755703847962,-1670.917246,0.0002,2]
[380358524,1755703847972,-364.588034,0.0002,2]
[380358525,1755703847981,-1670.917246,0.0002,2]
[380358526,1755703847990,-1670.917246,0.0002,2]
[380358527,1755703848001,-364.588034,0.0002,2]
[380358528,1755703848010,-284.593365,0.0002,2]
[380358529,1755703848020,-1670.917246,0.0002,2]
[380358530,1755703848029,-364.588034,0.0002,2]
[380358531,1755703848038,-284.593365,0.0002,2]
[380358532,1755703848048,-151.0,0.0002,2]
[380358533,1755703848057,-284.593365,0.0002,2]
[380358534,1755703848067,-6893.96887,0.0002,2]
[380358535,1755703848077,-151.0,0.0002,2]
[380358536,1755703848087,-284.593365,0.0002,2]
[380358537,1755703848096,-6893.96887,0.0002,2]
[380358538,1755703848106,-151.0,0.0002,2]
[380358539,1755703848118,-6893.96887,0.0002,2]
[380358540,1755703848127,-524.014228,0.0002,2]
[380358541,1755703848137,-151.0,0.0002,2]
[380358542,1755703848147,-6893.96887,0.0002,2]
[380358543,1755703848157,-151.0,0.0002,2]
[380358544,1755703848166,-524.014228,0.0002,2]
[380358545,1755703848176,-151.0,0.0002,2]
[380358546,1755703848184,-151.0,0.0002,2]
[380358547,1755703848193,-524.014228,0.0002,2]
[380358548,1755703848202,-400.047382,0.0002,2]
[380358549,1755703848212,-151.0,0.0002,2]
[380358550,1755703848221,-400.047382,0.0002,2]
[380358551,1755703848231,-487.891478,0.0002,2]
[380358552,1755703848240,-524.014228,0.0002,2]
[380358553,1755703848251,-277.875574,0.0002,2]
[380358554,1755703848260,-151.0,0.0002,2]
[380358555,1755703848270,-400.047382,0.0002,2]
[380358556,1755703848279,-487.891478,0.0002,2]
[380358557,1755703848287,-4000.0,0.0002,4]
[380358558,1755703848297,-11960.69364292,0.00020015,2]
[380358559,1755703848306,-251.01157101,0.0002004,2]
[380358560,1755703848316,-189.86,0.00020067,2]
[380358561,1755703848326,-12403.23930771,0.0002007,2]
[380358562,1755703848335,-300.0,0.00020099,2]
[380358563,1755703848344,-327.34944787,0.00020099,2]
[380358564,1755703848353,-300.0,0.00020099,2]
[380358565,1755703848364,-300.0,0.00020099,2]
[380358566,1755703848374,-173932.43,0.000201,2]
[380358567,1755703848383,-3163.425,0.000201,2]
[380358568,1755703848392,-6718.238,0.000201,2]
[380358569,1755703848402,-12862.1591621,0.00020125,2]
[380358570,1755703848411,-171.67356101,0.00020137,30]
[380358571,1755703848420,-216.15902767,0.00020164,2]
[380358572,1755703848430,-2500.0,0.00020164,2]
[380358573,1755703848439,-2500.0,0.00020164,2]
[380358574,1755703848448,-2500.0,0.00020164,2]
[380358575,1755703848458,-2500.0,0.00020164,2]
[380358576,1755703848467,-2500.0,0.00020164,2]
[380358577,1755703848477,-2500.0,0.00020164,2]
[380358578,1755703848486,-2500.0,0.00020164,2]
[380358579,1755703848496,-805.81616925,0.00020164,2]
[380358580,1755703848506,-2279.93214395,0.00020164,2]
[380358581,1755703848515,-349.0152414,0.00020164,2]
[380358582,1755703848524,-13338.05905109,0.0002018,2]
[380358583,1755703848533,-1000.0,0.00020187,2]
[380358584,1755703848542,-500.0,0.000202,2]
[380358585,1755703848551,-435.46592096,0.00020204,2]
[380358586,1755703848561,-162.380719,0.00020274,2]
[380358587,1755703848571,-171.67356101,0.00020356,30]
[380358588,1755703848580,-213.68,0.00020376,2]
[380358589,1755703848591,-151.0,0.00020386,2]
[380358590,1755703848602,-155.64884187,0.00020386,2]
[380358591,1755703848615,-151.0,0.00020386,2]
[380358592,1755703848625,-500.0,0.000204,2]
[380358593,1755703848640,-3648.4777,0.00020467,2]
[380358594,1755703848658,-566.4459389,0.0002049,2]
[380358595,1755703848669,-2000.0,0.000205,2]
[380358596,1755703848678,-7985.12,0.000205,2]
[380358597,1755703848687,-784.28053414,0.00020534,2]
[380358598,1755703848696,-150.0,0.00020548,2]
[380358599,1755703848706,-171.67356101,0.00020575,30]
[380358600,1755703848715,-784.28053414,0.00020661,2]
[380358601,1755703848724,-300.0,0.00020663,2]
[380358602,1755703848733,-835.07500776,0.00020678,2]
[380358603,1755703848743,-1000.0,0.00020712,2]
[380358604,1755703848752,-1907.95138748,0.00020712,2]
[380358605,1755703848762,-242.88028938,0.00020712,2]
[380358606,1755703848771,-1154.68601917,0.00020712,2]
[380358607,1755703848781,-3000.0,0.00020712,2]
[380358608,1755703848790,-3000.0,0.00020712,2]
[380358609,1755703848800,-3000.0,0.00020712,2]
[380358610,1755703848810,-291.19,0.00020815,2]
[380358611,1755703848819,-168.3888056,0.00020822,2]
[380358612,1755703848829,-150.0,0.00020874,4]
[380358613,1755703848839,-1300.0,0.00020904,2]
[380358614,1755703848848,-2200.0,0.00020904,2]
[380358615,1755703848857,-800.0,0.00020904,2]
[380358616,1755703848870,-151.0,0.00020934,2]
[380358617,1755703848880,-1000.0,0.00020944,2]
[380358618,1755703848890,-1000.0,0.00020977,2]
[380358619,1755703848900,-150.0,0.0002098,2]
[380358620,1755703848913,-151.0,0.00020989,2]
[380358621,1755703848923,-883.61988404,0.00020999,2]
[380358622,1755703848933,-287.61899177,0.00020999,2]
[380358623,1755703848942,-216.0,0.00021,2]
[380358624,1755703848952,-500.0,0.00021,7]
[380358625,1755703848962,-500.0,0.00021,7]
[380358626,1755703848972,-500.0,0.00021,7]
[380358627,1755703848982,-500.0,0.00021,7]
[380358628,1755703848992,-500.0,0.00021,7]
[380358629,1755703849002,-500.0,0.00021,7]
[380358630,1755703849011,-500.0,0.00021,7]
[380358631,1755703849021,-272.19,0.00021,7]
[380358632,1755703849030,-500.0,0.00021,7]
[380358633,1755703849039,-500.0,0.00021,7]
[380358634,1755703849049,-500.0,0.00021,7]
[380358635,1755703849059,-500.0,0.00021,7]
[380358636,1755703849068,-500.0,0.00021,7]
[380358637,1755703849078,-500.0,0.00021,7]
[380358638,1755703849088,-500.0,0.00021,7]
[380358639,1755703849097,-500.0,0.00021,7]
[380358640,1755703849107,-500.0,0.00021,7]
[380358641,1755703849117,-500.0,0.00021,7]
[380358642,1755703849127,-500.0,0.00021,7]
[380358643,1755703849136,-500.0,0.00021,7]
[380358644,1755703849146,-500.0,0.00021,7]
[380358645,1755703849155,-500.0,0.00021,7]
[380358646,1755703849165,-500.0,0.00021,7]
[380358647,1755703849175,-500.0,0.00021,7]
[380358648,1755703849184,-500.0,0.00021,7]
[380358649,1755703849193,-500.0,0.00021,7]
[380358650,1755703849203,-500.0,0.00021,7]
[380358651,1755703849212,-500.0,0.00021,7]
[380358652,1755703849221,-613.32,0.00021,7]
[380358653,1755703849231,-2000.0,0.00021,2]
[380358654,1755703849240,-2000.0,0.00021,2]
[380358655,1755703849249,-458.46930693,0.00021,7]
[380358656,1755703849259,-4000.0,0.00021,4]
[380358657,1755703849269,-1000.0,0.00021011,2]
[380358658,1755703849278,-1000.0,0.00021044,2]
[380358659,1755703849288,-379.0889,0.00021044,2]
[380358660,1755703849297,-1000.0,0.00021077,2]
[380358661,1755703849306,-151.0,0.00021096,2]
[380358662,1755703849316,-17782.51,0.000211,2]
[380358663,1755703849325,-1000.0,0.00021111,2]
[380358664,1755703849334,-1000.0,0.00021144,2]
[380358665,1755703849343,-150.0,0.00021148,2]
[380358666,1755703849353,-185.86,0.00021172,2]
[380358667,1755703849364,-1000.0,0.00021177,2]
[380358668,1755703849374,-156.587,0.00021207,2]
[380358669,1755703849383,-334.5472959,0.00021207,2]
[380358670,1755703849393,-1000.0,0.00021211,2]
[380358671,1755703849402,-300.0,0.00021225,2]
[380358672,1755703849412,-152.0,0.00021237,3]
[380358673,1755703849421,-1000.0,0.00021244,2]
[380358674,1755703849430,-3500.0,0.0002126,2]
[380358675,1755703849440,-3500.0,0.0002126,2]
[380358676,1755703849449,-3500.0,0.0002126,2]
[380358677,1755703849459,-1000.0,0.00021277,2]
[380358678,1755703849468,-10000.0,0.000213,2]
[380358679,1755703849477,-1000.0,0.00021311,2]
[380358680,1755703849486,-736.52053324,0.00021339,2]
[380358681,1755703849496,-1000.0,0.00021344,2]
[380358682,1755703849506,-174.61919141,0.0002137,2]
[380358683,1755703849517,-1000.0,0.00021377,2]
[380358684,1755703849526,-300.0,0.00021399,2]
[380358685,1755703849535,-300.0,0.00021399,2]
[380358686,1755703849545,-300.0,0.00021399,2]
[380358687,1755703849554,-173932.43,0.000214,2]
[380358688,1755703849564,-1000.0,0.00021411,2]
[380358689,1755703849574,-1000.0,0.00021444,2]
[380358690,1755703849583,-168.0,0.00021456,2]
[380358691,1755703849592,-1148.6305,0.00021473,2]
[380358692,1755703849602,-1000.0,0.00021477,2]
[380358693,1755703849613,-151.0,0.00021482,2]
[380358694,1755703849622,-168.0,0.0002149,2]
[380358695,1755703849631,-151.0,0.00021494,2]
[380358696,1755703849641,-216.0,0.000215,2]
[380358697,1755703849650,-218.0,0.000215,2]
[380358698,1755703849660,-196.38423222,0.0002151,2]
[380358699,1755703849669,-1000.0,0.00021511,2]
[380358700,1755703849679,-168.0,0.00021526,2]
[380358701,1755703849688,-300.0,0.00021543,2]
[380358702,1755703849697,-6368.535591,0.00021544,4]
[380358703,1755703849707,-6368.535591,0.00021544,4]
[380358704,1755703849716,-6368.535591,0.00021544,4]
[380358705,1755703849725,-6368.535591,0.00021544,4]
[380358706,1755703849734,-6368.535591,0.00021544,4]
[380358707,1755703849744,-6368.535591,0.00021544,4]
[380358708,1755703849753,-6368.535591,0.00021544,4]
[380358709,1755703849762,-6368.535591,0.00021544,4]
[380358710,1755703849771,-6368.535591,0.00021544,4]
[380358711,1755703849780,-6368.535591,0.00021544,4]
[380358712,1755703849789,-6368.535591,0.00021544,4]
[380358713,1755703849798,-6368.535591,0.00021544,4]
[380358714,1755703849807,-6368.535591,0.00021544,4]
[380358715,1755703849817,-6368.535591,0.00021544,4]
[380358716,1755703849826,-6368.535591,0.00021544,4]
[380358717,1755703849834,-6368.535591,0.00021544,4]
[380358718,1755703849843,-6368.535591,0.00021544,4]
[380358719,1755703849852,-6368.535591,0.00021544,4]
[380358720,1755703849863,-6368.535591,0.00021544,4]
[380358721,1755703849873,-6368.53,0.00021544,4]
[380358722,1755703849882,-4113.43918626,0.00021544,4]
[380358723,1755703849891,-4113.43918626,0.00021544,4]
[380358724,1755703849901,-4113.43918626,0.00021544,4]
[380358725,1755703849912,-4113.43918626,0.00021544,4]
[380358726,1755703849922,-4113.43918626,0.00021544,4]
[380358727,1755703849931,-4113.43918626,0.00021544,4]
[380358728,1755703849940,-4113.43918626,0.00021544,4]
[380358729,1755703849949,-4113.43918626,0.00021544,4]
[380358730,1755703849959,-4113.43918626,0.00021544,4]
[380358731,1755703849969,-4113.43918626,0.00021544,4]
[380358732,1755703849978,-4113.43918626,0.00021544,4]
[380358733,1755703849990,-4113.43918626,0.00021544,4]
[380358734,1755703849999,-4113.43918626,0.00021544,4]
[380358735,1755703850008,-4113.43918626,0.00021544,4]
[380358736,1755703850017,-4113.43918626,0.00021544,4]
[380358737,1755703850026,-4113.43918626,0.00021544,4]
[380358738,1755703850036,-4113.43918626,0.00021544,4]
[380358739,1755703850045,-4113.43918626,0.00021544,4]
[380358740,1755703850054,-4113.43918626,0.00021544,4]
[380358741,1755703850063,-4113.43,0.00021544,4]
[380358742,1755703850072,-369.6995532,0.00021544,4]
[380358743,1755703850082,-369.6995532,0.00021544,4]
[380358744,1755703850091,-369.6995532,0.00021544,4]
[380358745,1755703850100,-369.6995532,0.00021544,4]
[380358746,1755703850110,-369.6995532,0.00021544,4]
[380358747,1755703850120,-369.6995532,0.00021544,4]
[380358748,1755703850130,-369.6995532,0.00021544,4]
[380358749,1755703850139,-369.6995532,0.00021544,4]
[380358750,1755703850148,-369.6995532,0.00021544,4]
[380358751,1755703850157,-369.6995532,0.00021544,4]
[380358752,1755703850166,-369.6995532,0.00021544,4]
[380358753,1755703850175,-369.6995532,0.00021544,4]
[380358754,1755703850184,-369.6995532,0.00021544,4]
[380358755,1755703850193,-369.6995532,0.00021544,4]
[380358756,1755703850202,-369.6995532,0.00021544,4]
[380358757,1755703850211,-369.6995532,0.00021544,4]
[380358758,1755703850220,-369.6995532,0.00021544,4]
[380358759,1755703850229,-369.6995532,0.00021544,4]
[380358760,1755703850238,-369.6995532,0.00021544,4]
[380358761,1755703850248,-369.69,0.00021544,4]
[380358762,1755703850257,-1000.0,0.00021544,2]
[380358763,1755703850267,-524.014228,0.00021544,2]
[380358764,1755703850276,-151.0,0.00021544,2]
[380358765,1755703850285,-151.0,0.00021544,2]
[380358766,1755703850295,-524.014228,0.00021544,2]
[380358767,1755703850309,-151.0,0.00021544,2]
[380358768,1755703850318,-524.014228,0.00021544,2]
[380358769,1755703850328,-400.047382,0.00021544,2]
[380358770,1755703850338,-151.0,0.00021544,2]
[380358771,1755703850348,-400.047382,0.00021544,2]
[380358772,1755703850357,-487.891478,0.00021544,2]
[380358773,1755703850369,-524.014228,0.00021544,2]
[380358774,1755703850378,-151.0,0.00021544,2]
[380358775,1755703850387,-400.047382,0.00021544,2]
[380358776,1755703850397,-487.891478,0.00021544,2]
[380358777,1755703850406,-2545.53957219,0.0002155,2]
[380358778,1755703850415,-859.15589821,0.00021552,2]
[380358779,1755703850429,-1000.0,0.00021577,2]
[380358780,1755703850438,-1000.0,0.000216,2]
[380358781,1755703850447,-1000.0,0.00021611,2]
[380358782,1755703850457,-168.0,0.0002164,2]
[380358783,1755703850469,-1000.0,0.00021644,2]
[380358784,1755703850479,-1000.0,0.00021644,2]
[380358785,1755703850488,-1000.0,0.00021644,2]
[380358786,1755703850498,-1960.65898791,0.00021644,2]
[380358787,1755703850507,-1000.0,0.00021644,2]
[380358788,1755703850517,-1000.0,0.00021644,2]
[380358789,1755703850526,-1000.0,0.00021644,2]
[380358790,1755703850536,-1000.0,0.00021644,2]
[380358791,1755703850545,-1000.0,0.00021644,2]
[380358792,1755703850554,-1000.0,0.00021644,2]
[380358793,1755703850564,-1000.0,0.00021644,2]
[380358794,1755703850573,-1000.0,0.00021644,2]
[380358795,1755703850582,-1000.0,0.00021644,2]
[380358796,1755703850591,-1000.0,0.00021644,2]
[380358797,1755703850601,-1000.0,0.00021644,2]
[380358798,1755703850610,-1000.0,0.00021644,2]
[380358799,1755703850620,-1000.0,0.00021644,2]
[380358800,1755703850629,-1000.0,0.00021644,2]
[380358801,1755703850637,-1000.0,0.00021644,2]
[380358802,1755703850646,-1000.0,0.00021644,2]
[380358803,1755703850655,-1000.0,0.00021644,2]
[380358804,1755703850664,-1000.0,0.00021644,2]
[380358805,1755703850674,-1000.0,0.00021644,2]
[380358806,1755703850683,-1000.0,0.00021644,2]
[380358807,1755703850693,-1000.0,0.00021644,2]
[380358808,1755703850702,-1000.0,0.00021644,2]
[380358809,1755703850712,-1000.0,0.00021644,2]
[380358810,1755703850721,-1000.0,0.00021644,2]
[380358811,1755703850731,-1000.0,0.00021644,2]
[380358812,1755703850740,-1000.0,0.00021644,2]
[380358813,1755703850749,-1000.0,0.00021644,2]
[380358814,1755703850759,-1000.0,0.00021644,2]
[380358815,1755703850767,-1000.0,0.00021644,2]
[380358816,1755703850776,-1000.0,0.00021644,2]
[380358817,1755703850785,-1000.0,0.00021644,2]
[380358818,1755703850794,-1000.0,0.00021644,2]
[380358819,1755703850803,-1000.0,0.00021644,2]
[380358820,1755703850813,-1000.0,0.00021644,2]
[380358821,1755703850822,-1000.0,0.00021644,2]
[380358822,1755703850831,-1000.0,0.00021644,2]
[380358823,1755703850841,-1000.0,0.00021644,2]
[380358824,1755703850850,-1000.0,0.00021644,2]
[380358825,1755703850859,-1000.0,0.00021644,2]
[380358826,1755703850871,-1000.0,0.00021644,2]
[380358827,1755703850881,-1000.0,0.00021644,2]
[380358828,1755703850890,-1000.0,0.00021644,2]
[380358829,1755703850900,-1000.0,0.00021644,2]
[380358830,1755703850911,-1000.0,0.00021644,2]
[380358831,1755703850920,-1000.0,0.00021644,2]
[380358832,1755703850931,-1000.0,0.00021644,2]
[380358833,1755703850940,-1000.0,0.00021644,2]
[380358834,1755703850950,-1000.0,0.00021644,2]
[380358835,1755703850959,-1000.0,0.00021644,2]
[380358836,1755703850968,-1000.0,0.00021644,2]
[380358837,1755703850977,-152.0,0.00021644,2]
[380358838,1755703850987,-168.0,0.00021674,2]
[380358839,1755703850996,-1000.0,0.000217,2]
[380358840,1755703851006,-168.0,0.00021735,2]
[380358841,1755703851015,-435.46592096,0.00021755,2]
[380358842,1755703851024,-200.0,0.00021791,2]
[380358843,1755703851033,-12098.19088487,0.000218,2]
[380358844,1755703851043,-5000.0,0.000218,2]
[380358845,1755703851052,-169.48106029,0.000218,2]
[380358846,1755703851061,-685.86817473,0.00021808,2]
[380358847,1755703851071,-4000.0,0.00021808,2]
[380358848,1755703851080,-4000.0,0.00021808,2]
[380358849,1755703851089,-38565.3025,0.00021855,2]
[380358850,1755703851100,-1019.5039,0.00021855,2]
[380358851,1755703851109,-1000.0,0.00021855,2]
[380358852,1755703851120,-400.0,0.0002187,2]
[380358853,1755703851129,-151.0,0.0002187,2]
[380358854,1755703851139,-151.0,0.0002187,2]
[380358855,1755703851148,-689.144136,0.0002187,2]
[380358856,1755703851158,-151.0,0.0002187,2]
[380358857,1755703851167,-689.144136,0.0002187,2]
[380358858,1755703851176,-689.144136,0.0002187,2]
[380358859,1755703851185,-689.144136,0.0002187,2]
[380358860,1755703851194,-151.0,0.0002187,2]
[380358861,1755703851204,-151.0,0.0002187,2]
[380358862,1755703851213,-151.0,0.0002187,2]
[380358863,1755703851222,-329.066521,0.0002187,2]
[380358864,1755703851232,-329.066521,0.0002187,2]
[380358865,1755703851241,-159.878135,0.0002187,2]
[380358866,1755703851250,-620.539323,0.0002187,2]
[380358867,1755703851260,-151.0,0.0002187,2]
[380358868,1755703851269,-329.066521,0.0002187,2]
[380358869,1755703851279,-159.878135,0.0002187,2]
[380358870,1755703851289,-620.539323,0.0002187,2]
[380358871,1755703851299,-151.0,0.0002187,2]
[380358872,1755703851309,-151.0,0.0002187,2]
[380358873,1755703851319,-329.066521,0.0002187,2]
[380358874,1755703851328,-151.0,0.0002187,2]
[380358875,1755703851337,-159.878135,0.0002187,2]
[380358876,1755703851347,-620.539323,0.0002187,2]
[380358877,1755703851356,-159.878135,0.0002187,2]
[380358878,1755703851366,-620.539323,0.0002187,2]
[380358879,1755703851375,-440.590638,0.0002187,2]
[380358880,1755703851385,-440.590638,0.0002187,2]
[380358881,1755703851394,-151.0,0.0002187,2]
[380358882,1755703851403,-440.590638,0.0002187,2]
[380358883,1755703851411,-151.0,0.0002187,2]
[380358884,1755703851422,-440.590638,0.0002187,2]
[380358885,1755703851431,-151.0,0.0002187,2]
[380358886,1755703851440,-336.151469,0.0002187,2]
[380358887,1755703851449,-336.151469,0.0002187,2]
[380358888,1755703851459,-336.151469,0.0002187,2]
[380358889,1755703851468,-336.151469,0.0002187,2]
[380358890,1755703851477,-151.0,0.0002187,2]
[380358891,1755703851486,-151.0,0.0002187,2]
[380358892,1755703851495,-151.0,0.0002187,2]
[380358893,1755703851505,-151.0,0.0002187,2]
[380358894,1755703851514,-700.201196,0.0002187,2]
[380358895,1755703851523,-247.85332,0.0002187,2]
[380358896,1755703851533,-700.201196,0.0002187,2]
[380358897,1755703851542,-700.201196,0.0002187,2]
[380358898,1755703851552,-700.201196,0.0002187,2]
[380358899,1755703851560,-151.0,0.0002187,2]